fUSD/lending_fUSD_20260118
["ID","MTS","AMOUNT","RATE_DAILY","PERIOD"]
[402548397,1768704693919,-500.0,0.00017534,2]
[402548398,1768704693928,-618.15,0.00017534,2]
[402548399,1768704693938,-500.0,0.00017534,2]
[402548400,1768704693947,-500.0,0.00017534,2]
[402548401,1768704693957,-556.21,0.00017534,2]
[402548402,1768704693967,-541.16,0.00017534,2]
[402548403,1768704693977,-500.0,0.00017534,2]
[402548404,1768704693987,-500.0,0.00017534,2]
[402548405,1768704693997,-589.29,0.00017534,2]
[402548406,1768704694007,-500.0,0.00017534,2]
[402548407,1768704694017,-500.0,0.00017534,2]
[402548408,1768704694026,-500.0,0.00017534,2]
[402548409,1768704694036,-652.06,0.00017534,2]
[402548410,1768704694046,-553.43,0.00017534,2]
[402548411,1768704694056,-500.0,0.00017534,2]
[402548412,1768704694065,-500.0,0.00017534,2]
[402548413,1768704694075,-500.0,0.00017534,2]
[402548414,1768704694085,-619.76541343,0.00017534,2]
[402548415,1768704694174,-500.0,0.00017534,2]
[402548416,1768704694183,-500.0,0.00017534,2]
[402548417,1768704694193,-500.0,0.00017534,2]
[402548418,1768704694202,-500.0,0.00017534,2]
[402548419,1768704694211,-500.0,0.00017534,2]
[402548420,1768704694220,-500.0,0.00017534,2]
[402548421,1768704694229,-500.0,0.00017534,2]
[402548422,1768704694238,-341.43721901,0.00017534,2]
[402548423,1768704694247,-500.0,0.00017534,2]
[402548424,1768704694256,-535.32,0.00017534,2]
[402548425,1768704694265,-500.0,0.00017534,2]
[402548426,1768704694274,-500.0,0.00017534,2]
[402548427,1768704694284,-500.0,0.00017534,2]
[402548428,1768704694294,-500.0,0.00017534,2]
[402548429,1768704694302,-500.0,0.00017534,2]
[402548430,1768704694313,-500.0,0.00017534,2]
[402548431,1768704694322,-500.0,0.00017534,2]
[402548432,1768704694331,-944.28,0.00017534,2]
[402548433,1768704694340,-691.68,0.00017534,2]
[402548434,1768704694350,-500.0,0.00017534,2]
[402548435,1768704694360,-500.0,0.00017534,2]
[402548436,1768704694369,-500.0,0.00017534,2]
[402548437,1768704694378,-500.0,0.00017534,2]
[402548438,1768704694388,-500.0,0.00017534,2]
[402548439,1768704694397,-500.0,0.00017534,2]
[402548440,1768704694406,-500.0,0.00017534,2]
[402548441,1768704694414,-500.0,0.00017534,2]
[402548442,1768704694423,-500.0,0.00017534,2]
[402548443,1768704694432,-500.0,0.00017534,2]
[402548444,1768704694441,-500.0,0.00017534,2]
[402548445,1768704694451,-500.0,0.00017534,2]
[402548446,1768704694459,-500.0,0.00017534,2]
[402548447,1768704694468,-515.05,0.00017534,2]
[402548448,1768704694477,-500.0,0.00017534,2]
[402548449,1768704694487,-500.0,0.00017534,2]
[402548450,1768704694496,-500.0,0.00017534,2]
[402548451,1768704694505,-500.0,0.00017534,2]
[402548452,1768704694515,-550.57,0.00017534,2]
[402548453,1768704694524,-363.77288175,0.00017534,2]
[402548454,1768704694533,-500.0,0.00017534,2]
[402548455,1768704694542,-500.0,0.00017534,2]
[402548456,1768704694552,-617.18,0.00017534,2]
[402548457,1768704694561,-509.26,0.00017534,2]
[402548458,1768704694570,-500.0,0.00017534,2]
[402548459,1768704694579,-500.0,0.00017534,2]
[402548460,1768704694589,-213.32396655,0.00017534,2]
[402548461,1768704694598,-500.0,0.00017534,2]
[402548462,1768704694607,-500.0,0.00017534,2]
[402548463,1768704694616,-500.0,0.00017534,2]
[402548464,1768704694626,-795.73,0.00017534,2]
[402548465,1768704694635,-500.0,0.00017534,2]
[402548466,1768704694644,-500.0,0.00017534,2]
[402548467,1768704694653,-500.0,0.00017534,2]
[402548468,1768704694662,-576.65196726,0.00017534,2]
[402548469,1768704694670,-759.1,0.00017534,2]
[402548470,1768704694679,-500.0,0.00017534,2]
[402548471,1768704694691,-500.0,0.00017534,2]
[402548472,1768704694702,-500.0,0.00017534,2]
[402548473,1768704694712,-500.0,0.00017534,2]
[402548474,1768704694721,-500.0,0.00017534,2]
[402548475,1768704694731,-500.0,0.00017534,2]
[402548476,1768704694740,-500.0,0.00017534,2]
[402548477,1768704694749,-500.0,0.00017534,2]
[402548478,1768704694759,-570.85,0.00017534,2]
[402548479,1768704694769,-696.85,0.00017534,2]
[402548480,1768704694778,-500.0,0.00017534,2]
[402548481,1768704694787,-500.0,0.00017534,2]
[402548482,1768704694796,-500.0,0.00017534,2]
[402548483,1768704694805,-500.0,0.00017534,2]
[402548484,1768704694815,-500.0,0.00017534,2]
[402548485,1768704694824,-615.88,0.00017534,2]
[402548486,1768704694833,-500.0,0.00017534,2]
[402548487,1768704694842,-500.0,0.00017534,2]
[402548488,1768704694851,-540.82,0.00017534,2]
[402548489,1768704694861,-500.0,0.00017534,2]
[402548490,1768704694870,-756.2,0.00017534,2]
[402548491,1768704694879,-500.0,0.00017534,2]
[402548492,1768704694888,-500.0,0.00017534,2]
[402548493,1768704694898,-500.0,0.00017534,2]
[402548494,1768704694907,-518.9,0.00017534,2]
[402548495,1768704694916,-500.0,0.00017534,2]
[402548496,1768704694925,-500.0,0.00017534,2]
[402548497,1768704694934,-500.0,0.00017534,2]
[402548498,1768704694944,-500.0,0.00017534,2]
[402548499,1768704694954,-500.0,0.00017534,2]
[402548500,1768704694963,-500.0,0.00017534,2]
[402548501,1768704694973,-500.0,0.00017534,2]
[402548502,1768704694983,-517.66,0.00017534,2]
[402548503,1768704694993,-500.0,0.00017534,2]
[402548504,1768704695002,-500.0,0.00017534,2]
[402548505,1768704695013,-500.0,0.00017534,2]
[402548506,1768704695022,-500.0,0.00017534,2]
[402548507,1768704695031,-507.58,0.00017534,2]
[402548508,1768704695040,-967.46,0.00017534,2]
[402548509,1768704695050,-604.28,0.00017534,2]
[402548510,1768704695059,-500.0,0.00017534,2]
[402548511,1768704695069,-500.0,0.00017534,2]
[402548512,1768704695078,-500.0,0.00017534,2]
[402548513,1768704695088,-500.0,0.00017534,2]
[402548514,1768704695097,-218.17815343,0.00017534,2]
[402548515,1768704695107,-515.22104323,0.00017534,2]
[402548516,1768704695116,-500.0,0.00017534,2]
[402548517,1768704695126,-500.0,0.00017534,2]
[402548518,1768704695135,-500.0,0.00017534,2]
[402548519,1768704695144,-500.0,0.00017534,2]
[402548520,1768704695154,-613.22,0.00017534,2]
[402548521,1768704695163,-500.0,0.00017534,2]
[402548522,1768704695172,-500.0,0.00017534,2]
[402548523,1768704695181,-500.0,0.00017534,2]
[402548524,1768704695190,-599.84,0.00017534,2]
[402548525,1768704695199,-535.56,0.00017534,2]
[402548526,1768704695208,-500.0,0.00017534,2]
[402548527,1768704695218,-500.0,0.00017534,2]
[402548528,1768704695227,-500.0,0.00017534,2]
[402548529,1768704695236,-500.0,0.00017534,2]
[402548530,1768704695245,-500.0,0.00017534,2]
[402548531,1768704695255,-500.0,0.00017534,2]
[402548532,1768704695264,-743.81,0.00017534,2]
[402548533,1768704695273,-500.0,0.00017534,2]
[402548534,1768704695282,-500.0,0.00017534,2]
[402548535,1768704695291,-500.0,0.00017534,2]
[402548536,1768704695301,-500.0,0.00017534,2]
[402548537,1768704695310,-500.0,0.00017534,2]
[402548538,1768704695319,-500.0,0.00017534,2]
[402548539,1768704695328,-500.0,0.00017534,2]
[402548540,1768704695338,-1374.37,0.00017534,2]
[402548541,1768704695348,-500.0,0.00017534,2]
[402548542,1768704695358,-176.91983268,0.00017534,2]
[402548543,1768704695367,-500.0,0.00017534,2]
[402548544,1768704695377,-500.0,0.00017534,2]
[402548545,1768704695386,-500.0,0.00017534,2]
[402548546,1768704695395,-500.0,0.00017534,2]
[402548547,1768704695404,-500.0,0.00017534,2]
[402548548,1768704695413,-500.0,0.00017534,2]
[402548549,1768704695422,-566.94,0.00017534,2]
[402548550,1768704695431,-500.0,0.00017534,2]
[402548551,1768704695441,-500.0,0.00017534,2]
[402548552,1768704695450,-500.0,0.00017534,2]
[402548553,1768704695459,-500.0,0.00017534,2]
[402548554,1768704695468,-500.0,0.00017534,2]
[402548555,1768704695478,-618.9,0.00017534,2]
[402548556,1768704695487,-500.0,0.00017534,2]
[402548557,1768704695497,-500.0,0.00017534,2]
[402548558,1768704695506,-500.0,0.00017534,2]
[402548559,1768704695515,-500.0,0.00017534,2]
[402548560,1768704695525,-500.0,0.00017534,2]
[402548561,1768704695535,-463.48593446,0.00017534,2]
[402548562,1768704695545,-686.87,0.00017534,2]
[402548563,1768704695554,-500.0,0.00017534,2]
[402548564,1768704695563,-699.56,0.00017534,2]
[402548565,1768704695572,-500.0,0.00017534,2]
[402548566,1768704695581,-567.31,0.00017534,2]
[402548567,1768704695590,-500.0,0.00017534,2]
[402548568,1768704695599,-500.0,0.00017534,2]
[402548569,1768704695609,-500.0,0.00017534,2]
[402548570,1768704695618,-336.05557237,0.00017534,2]
[402548571,1768704695627,-500.0,0.00017534,2]
[402548572,1768704695636,-500.0,0.00017534,2]
[402548573,1768704695646,-549.87,0.00017534,2]
[402548574,1768704695655,-518.66,0.00017534,2]
[402548575,1768704695664,-500.0,0.00017534,2]
[402548576,1768704695673,-500.0,0.00017534,2]
[402548577,1768704695682,-1252.21,0.00017534,2]
[402548578,1768704695694,-500.0,0.00017534,2]
[402548579,1768704695703,-501.74192467,0.00017534,2]
[402548580,1768704695712,-500.0,0.00017534,2]
[402548581,1768704695722,-500.0,0.00017534,2]
[402548582,1768704695731,-675.32,0.00017534,2]
[402548583,1768704695740,-500.0,0.00017534,2]
[402548584,1768704695750,-819.57,0.00017534,2]
[402548585,1768704695759,-500.0,0.00017534,2]
[402548586,1768704695770,-500.0,0.00017534,2]
[402548587,1768704695779,-905.68,0.00017534,2]
[402548588,1768704695789,-672.64,0.00017534,2]
[402548589,1768704695799,-500.0,0.00017534,2]
[402548590,1768704695809,-500.0,0.00017534,2]
[402548591,1768704695818,-500.0,0.00017534,2]
[402548592,1768704695827,-500.0,0.00017534,2]
[402548593,1768704695836,-500.0,0.00017534,2]
[402548594,1768704695845,-500.0,0.00017534,2]
[402548595,1768704695854,-679.24,0.00017534,2]
[402548596,1768704695864,-500.0,0.00017534,2]
[402548597,1768704695874,-500.0,0.00017534,2]
[402548598,1768704695883,-500.0,0.00017534,2]
[402548599,1768704695892,-500.0,0.00017534,2]
[402548600,1768704695902,-500.0,0.00017534,2]
[402548601,1768704695913,-500.0,0.00017534,2]
[402548602,1768704695923,-500.0,0.00017534,2]
[402548603,1768704695933,-500.0,0.00017534,2]
[402548604,1768704695943,-500.0,0.00017534,2]
[402548605,1768704695952,-784.15,0.00017534,2]
[402548606,1768704695962,-500.0,0.00017534,2]
[402548607,1768704695972,-500.0,0.00017534,2]
[402548608,1768704695981,-500.0,0.00017534,2]
[402548609,1768704695991,-491.5915616,0.00017534,2]
[402548610,1768704696000,-1088.99,0.00017534,2]
[402548611,1768704696010,-245.52137267,0.00017534,2]
[402548612,1768704696019,-873.83,0.00017534,2]
[402548613,1768704696029,-500.0,0.00017534,2]
[402548614,1768704696038,-500.0,0.00017534,2]
[402548615,1768704696048,-500.0,0.00017534,2]
[402548616,1768704696057,-500.0,0.00017534,2]
[402548617,1768704696066,-500.0,0.00017534,2]
[402548618,1768704696075,-500.0,0.00017534,2]
[402548619,1768704696085,-500.0,0.00017534,2]
[402548620,1768704696094,-500.0,0.00017534,2]
[402548621,1768704696103,-849.28,0.00017534,2]
[402548622,1768704696113,-554.17,0.00017534,2]
[402548623,1768704696122,-500.0,0.00017534,2]
[402548624,1768704696131,-500.0,0.00017534,2]
[402548625,1768704696140,-656.33,0.00017534,2]
[402548626,1768704696150,-500.0,0.00017534,2]
[402548627,1768704696160,-828.81,0.00017534,2]
[402548628,1768704696169,-1041.03,0.00017534,2]
[402548629,1768704696180,-500.0,0.00017534,2]
[402548630,1768704696190,-652.83,0.00017534,2]
[402548631,1768704696200,-704.21,0.00017534,2]
[402548632,1768704696211,-593.79,0.00017534,2]
[402548633,1768704696221,-1293.52,0.00017534,2]
[402548634,1768704696231,-500.0,0.00017534,2]
[402548635,1768704696242,-747.18,0.00017534,2]
[402548636,1768704696251,-500.0,0.00017534,2]
[402548637,1768704696261,-500.0,0.00017534,2]
[402548638,1768704696270,-500.0,0.00017534,2]
[402548639,1768704696279,-514.03,0.00017534,2]
[402548640,1768704696288,-642.56,0.00017534,2]
[402548641,1768704696300,-706.13,0.00017534,2]
[402548642,1768704696309,-500.0,0.00017534,2]
[402548643,1768704696318,-567.23,0.00017534,2]
[402548644,1768704696327,-500.0,0.00017534,2]
[402548645,1768704696336,-622.09,0.00017534,2]
[402548646,1768704696347,-322.93788587,0.00017534,2]
[402548647,1768704696356,-500.0,0.00017534,2]
[402548648,1768704696366,-526.47,0.00017534,2]
[402548649,1768704696375,-500.0,0.00017534,2]
[402548650,1768704696384,-239.26122179,0.00017534,2]
[402548651,1768704696393,-500.0,0.00017534,2]
[402548652,1768704696403,-769.53,0.00017534,2]
[402548653,1768704696414,-500.0,0.00017534,2]
[402548654,1768704696424,-500.0,0.00017534,2]
[402548655,1768704696434,-500.0,0.00017534,2]
[402548656,1768704696443,-500.0,0.00017534,2]
[402548657,1768704696452,-500.0,0.00017534,2]
[402548658,1768704696462,-614.22,0.00017534,2]
[402548659,1768704696471,-500.0,0.00017534,2]
[402548660,1768704696481,-500.0,0.00017534,2]
[402548661,1768704696490,-685.95,0.00017534,2]
[402548662,1768704696500,-500.0,0.00017534,2]
[402548663,1768704696509,-500.0,0.00017534,2]
[402548664,1768704696519,-500.0,0.00017534,2]
[402548665,1768704696528,-500.0,0.00017534,2]
[402548666,1768704696538,-538.24,0.00017534,2]
[402548667,1768704696547,-500.0,0.00017534,2]
[402548668,1768704696556,-518.15,0.00017534,2]
[402548669,1768704696565,-522.43,0.00017534,2]
[402548670,1768704696573,-828.15,0.00017534,2]
[402548671,1768704696582,-583.36,0.00017534,2]
[402548672,1768704696592,-746.7,0.00017534,2]
[402548673,1768704696601,-733.72,0.00017534,2]
[402548674,1768704696610,-932.56,0.00017534,2]
[402548675,1768704696619,-500.0,0.00017534,2]
[402548676,1768704696628,-500.0,0.00017534,2]
[402548677,1768704696637,-500.0,0.00017534,2]
[402548678,1768704696646,-937.7,0.00017534,2]
[402548679,1768704696655,-500.0,0.00017534,2]
[402548680,1768704696664,-500.0,0.00017534,2]
[402548681,1768704696674,-711.37,0.00017534,2]
[402548682,1768704696683,-500.0,0.00017534,2]
[402548683,1768704696694,-566.38,0.00017534,2]
[402548684,1768704696703,-500.0,0.00017534,2]
[402548685,1768704696712,-500.0,0.00017534,2]
[402548686,1768704696723,-500.0,0.00017534,2]
[402548687,1768704696732,-598.62,0.00017534,2]
[402548688,1768704696742,-500.0,0.00017534,2]
[402548689,1768704696751,-636.73,0.00017534,2]
[402548690,1768704696761,-500.0,0.00017534,2]
[402548691,1768704696772,-500.0,0.00017534,2]
[402548692,1768704696781,-500.0,0.00017534,2]
[402548693,1768704696791,-500.0,0.00017534,2]
[402548694,1768704696800,-976.47,0.00017534,2]
[402548695,1768704696809,-500.0,0.00017534,2]
[402548696,1768704696819,-978.58,0.00017534,2]
[402548697,1768704696827,-500.0,0.00017534,2]
[402548698,1768704696837,-500.0,0.00017534,2]
[402548699,1768704696847,-500.0,0.00017534,2]
[402548700,1768704696857,-500.0,0.00017534,2]
[402548701,1768704696866,-500.0,0.00017534,2]
[402548702,1768704696875,-500.0,0.00017534,2]
[402548703,1768704696885,-500.0,0.00017534,2]
[402548704,1768704696894,-500.0,0.00017534,2]
[402548705,1768704696903,-500.0,0.00017534,2]
[402548706,1768704696913,-568.1,0.00017534,2]
[402548707,1768704696922,-500.0,0.00017534,2]
[402548708,1768704696932,-500.0,0.00017534,2]
[402548709,1768704696942,-500.0,0.00017534,2]
[402548710,1768704696952,-500.0,0.00017534,2]
[402548711,1768704696961,-500.0,0.00017534,2]
[402548712,1768704696971,-500.0,0.00017534,2]
[402548713,1768704696980,-503.39,0.00017534,2]
[402548714,1768704696990,-500.0,0.00017534,2]
[402548715,1768704696999,-768.5,0.00017534,2]
[402548716,1768704697011,-500.0,0.00017534,2]
[402548717,1768704697020,-500.0,0.00017534,2]
[402548718,1768704697030,-639.7,0.00017534,2]
[402548719,1768704697039,-500.0,0.00017534,2]
[402548720,1768704697048,-744.82,0.00017534,2]
[402548721,1768704697058,-550.76,0.00017534,2]
[402548722,1768704697067,-500.0,0.00017534,2]
[402548723,1768704697076,-500.0,0.00017534,2]
[402548724,1768704697085,-578.75,0.00017534,2]
[402548725,1768704697095,-500.0,0.00017534,2]
[402548726,1768704697104,-500.0,0.00017534,2]
[402548727,1768704697114,-500.0,0.00017534,2]
[402548728,1768704697123,-500.0,0.00017534,2]
[402548729,1768704697132,-500.0,0.00017534,2]
[402548730,1768704697142,-500.0,0.00017534,2]
[402548731,1768704697151,-500.0,0.00017534,2]
[402548732,1768704697160,-500.0,0.00017534,2]
[402548733,1768704697169,-523.82,0.00017534,2]
[402548734,1768704697178,-500.0,0.00017534,2]
[402548735,1768704697188,-511.36,0.00017534,2]
[402548736,1768704697197,-500.0,0.00017534,2]
[402548737,1768704697206,-500.0,0.00017534,2]
[402548738,1768704697216,-500.0,0.00017534,2]
[402548739,1768704697226,-182.06965875,0.00017534,2]
[402548740,1768704697235,-500.0,0.00017534,2]
[402548741,1768704697244,-500.0,0.00017534,2]
[402548742,1768704697253,-511.15,0.00017534,2]
[402548743,1768704697262,-500.0,0.00017534,2]
[402548744,1768704697272,-500.0,0.00017534,2]
[402548745,1768704697281,-500.0,0.00017534,2]
[402548746,1768704697290,-500.0,0.00017534,2]
[402548747,1768704697299,-653.96,0.00017534,2]
[402548748,1768704697308,-519.76,0.00017534,2]
[402548749,1768704697317,-500.0,0.00017534,2]
[402548750,1768704697326,-500.0,0.00017534,2]
[402548751,1768704697336,-583.4,0.00017534,2]
[402548752,1768704697346,-500.0,0.00017534,2]
[402548753,1768704697356,-500.0,0.00017534,2]
[402548754,1768704697365,-500.0,0.00017534,2]
[402548755,1768704697374,-984.61,0.00017534,2]
[402548756,1768704697383,-527.66,0.00017534,2]
[402548757,1768704697393,-155.26758635,0.00017534,2]
[402548758,1768704697402,-500.0,0.00017534,2]
[402548759,1768704697412,-8020.14,0.00017534,2]
[402548760,1768704697422,-500.0,0.00017534,2]
[402548761,1768704697431,-520.18,0.00017534,2]
[402548762,1768704697440,-500.0,0.00017534,2]
[402548763,1768704697450,-811.1,0.00017534,2]
[402548764,1768704697458,-500.0,0.00017534,2]
[402548765,1768704697468,-500.0,0.00017534,2]
[402548766,1768704697478,-500.0,0.00017534,2]
[402548767,1768704697491,-1000.0,0.00017534,2]
[402548768,1768704697500,-150.0,0.00017565,2]
[402548769,1768704697509,-500.0,0.00017573,2]
[402548770,1768704697519,-500.0,0.00017573,2]
[402548771,1768704697528,-500.0,0.00017573,2]
[402548772,1768704697538,-500.0,0.00017573,2]
[402548773,1768704697547,-500.0,0.00017573,2]
[402548774,1768704697556,-150.0,0.00017573,2]
[402548775,1768704697564,-150.0,0.00017573,2]
[402548776,1768704697572,-500.0,0.00017573,2]
[402548777,1768704697580,-500.0,0.00017573,2]
[402548778,1768704697589,-611.92635335,0.00017573,2]
[402548779,1768704697597,-500.0,0.00017573,2]
[402548780,1768704697606,-500.0,0.00017573,2]
[402548781,1768704697615,-500.0,0.00017573,2]
[402548782,1768704697625,-332.83331926,0.00017573,2]
[402548783,1768704697634,-500.0,0.00017573,2]
[402548784,1768704697643,-274.90770216,0.00017573,2]
[402548785,1768704697652,-500.0,0.00017573,2]
[402548786,1768704697661,-500.0,0.00017573,2]
[402548787,1768704697671,-716.83126961,0.00017573,2]
[402548788,1768704697680,-500.0,0.00017573,2]
[402548789,1768704697689,-500.0,0.00017573,2]
[402548790,1768704697700,-500.0,0.00017573,2]
[402548791,1768704697709,-161.14043786,0.00017573,2]
[402548792,1768704697718,-596.05594459,0.00017573,2]
[402548793,1768704697727,-500.0,0.00017573,2]
[402548794,1768704697738,-500.0,0.00017573,2]
[402548795,1768704697747,-500.0,0.00017573,2]
[402548796,1768704697756,-500.0,0.00017573,2]
[402548797,1768704697765,-500.0,0.00017573,2]
[402548798,1768704697775,-500.0,0.00017573,2]
[402548799,1768704697784,-500.0,0.00017573,2]
[402548800,1768704697793,-374.10941357,0.00017573,2]
[402548801,1768704697803,-500.0,0.00017573,2]
[402548802,1768704697811,-500.0,0.00017573,2]
[402548803,1768704697821,-181.23387532,0.00017573,2]
[402548804,1768704697830,-500.0,0.00017573,2]
[402548805,1768704697839,-500.0,0.00017573,2]
[402548806,1768704697849,-500.0,0.00017573,2]
[402548807,1768704697858,-461.98767067,0.00017573,2]
[402548808,1768704697868,-171.29282864,0.00017573,2]
[402548809,1768704697879,-500.0,0.00017573,2]
[402548810,1768704697888,-430.61841366,0.00017573,2]
[402548811,1768704697898,-500.0,0.00017573,2]
[402548812,1768704697908,-500.0,0.00017573,2]
[402548813,1768704697919,-500.0,0.00017573,2]
[402548814,1768704697928,-160.87954017,0.00017573,2]
[402548815,1768704697937,-500.0,0.00017573,2]
[402548816,1768704697947,-500.0,0.00017573,2]
[402548817,1768704697956,-500.0,0.00017573,2]
[402548818,1768704697966,-500.0,0.00017573,2]
[402548819,1768704697976,-500.0,0.00017573,2]
[402548820,1768704697985,-500.0,0.00017573,2]
[402548821,1768704697995,-500.0,0.00017573,2]
[402548822,1768704698006,-500.0,0.00017573,2]
[402548823,1768704698016,-500.0,0.00017573,2]
[402548824,1768704698027,-500.0,0.00017573,2]
[402548825,1768704698037,-500.0,0.00017573,2]
[402548826,1768704698047,-500.0,0.00017573,2]
[402548827,1768704698057,-500.0,0.00017573,2]
[402548828,1768704698067,-500.86844017,0.00017573,2]
[402548829,1768704698077,-547.55135444,0.00017573,2]
[402548830,1768704698086,-500.0,0.00017573,2]
[402548831,1768704698097,-500.0,0.00017573,2]
[402548832,1768704698107,-500.0,0.00017573,2]
[402548833,1768704698117,-500.0,0.00017573,2]
[402548834,1768704698127,-199.6649,0.00017573,2]
[402548835,1768704698137,-199.66491,0.00017573,2]
[402548836,1768704698147,-5180.0,0.00017577,2]
[402548837,1768704698157,-150.0,0.0001758,2]
[402548838,1768704698166,-300.8,0.000176,2]
[402548839,1768704698176,-1100.0,0.000176,6]
[402548840,1768704698323,-187.78971762,0.00017601,2]
[402548841,1768704698334,-5180.0,0.00017608,2]
[402548842,1768704698344,-1125.3,0.00017608,2]
[402548843,1768704698354,-491.33634829,0.00017611,2]
[402548844,1768704698364,-150.0,0.00017632,2]
[402548845,1768704698374,-181.98921658,0.00017663,2]
[402548846,1768704698385,-375.15072105,0.00017671,2]
[402548847,1768704698395,-151.0,0.00017672,2]
[402548848,1768704698405,-151.0,0.00017672,2]
[402548849,1768704698416,-255.647116,0.00017672,2]
[402548850,1768704698425,-255.647116,0.00017672,2]
[402548851,1768704698435,-255.647116,0.00017672,2]
[402548852,1768704698444,-255.647113,0.00017672,2]
[402548853,1768704698455,-1000.0,0.00017684,2]
[402548854,1768704698464,-772.41,0.000177,2]
[402548855,1768704698474,-1100.0,0.000177,6]
[402548856,1768704698484,-1125.3,0.00017706,2]
[402548857,1768704698494,-19684.80200927,0.00017708,2]
[402548858,1768704698504,-802.62,0.00017709,2]
[402548859,1768704698514,-194.72792766,0.00017711,2]
[402548860,1768704698524,-640.24385345,0.00017711,2]
[402548861,1768704698534,-500.0,0.00017726,7]
[402548862,1768704698544,-500.0,0.00017726,7]
[402548863,1768704698554,-800.0,0.00017726,7]
[402548864,1768704698564,-375.15072105,0.00017726,2]
[402548865,1768704698573,-150.0,0.00017752,2]
[402548866,1768704698584,-1874.84,0.0001776,2]
[402548867,1768704698593,-1000.0,0.00017791,2]
[402548868,1768704698603,-559.56,0.00017793,2]
[402548869,1768704698614,-1981.0,0.00017799,2]
[402548870,1768704698625,-161.0,0.000178,3]
[402548871,1768704698635,-1100.0,0.000178,6]
[402548872,1768704698646,-1125.3,0.00017804,2]
[402548873,1768704698657,-813.9331909,0.00017808,4]
[402548874,1768704698667,-74319.70235745,0.00017808,2]
[402548875,1768704698678,-29198.68826686,0.00017808,4]
[402548876,1768704698691,-979.80974503,0.00017808,2]
[402548877,1768704698702,-1252.9151919,0.00017808,3]
[402548878,1768704698712,-500.0,0.00017808,2]
[402548879,1768704698723,-524.58,0.00017808,2]
[402548880,1768704698734,-660.78,0.00017808,2]
[402548881,1768704698745,-500.0,0.00017808,2]
[402548882,1768704698755,-500.0,0.00017808,2]
[402548883,1768704698766,-500.0,0.00017808,2]
[402548884,1768704698779,-500.0,0.00017808,2]
[402548885,1768704698794,-500.0,0.00017808,2]
[402548886,1768704698804,-599.82,0.00017808,2]
[402548887,1768704698821,-500.0,0.00017808,2]
[402548888,1768704698840,-500.0,0.00017808,2]
[402548889,1768704698850,-153.69573239,0.00017808,2]
[402548890,1768704698860,-500.0,0.00017808,2]
[402548891,1768704698871,-719.96,0.00017808,2]
[402548892,1768704698881,-853.29,0.00017808,2]
[402548893,1768704698891,-500.0,0.00017808,2]
[402548894,1768704698902,-500.0,0.00017808,2]
[402548895,1768704698912,-554.1,0.00017808,2]
[402548896,1768704698922,-500.0,0.00017808,2]